bitfinex-derivatives/quotes_SOLF0:USTF0_20250924
["timestamp","ask_amount","ask_price","bid_price","bid_amount"]
[1758676546686,7.09,215.07,214.96,4.1851]
[1758676547091,7.09,215.07,214.97,7.6]
[1758676547592,7.09,215.07,214.98,4.1847]
[1758676548993,7.09,215.07,214.97,7.6]
[1758676550990,7.09,215.07,214.98,4.1847]
[1758676551384,4.1822,215.11,215.01,7.6]
[1758676551385,11.2722,215.11,215.01,7.6]
[1758676552091,7.09,215.11,215.01,7.6]
[1758676552485,7.09,215.11,214.97,4.1848]
[1758676552986,7.09,215.06,214.97,4.1848]
[1758676553988,4.1825,215.1,214.99,7.41]
[1758676554189,7.57,215.11,214.99,7.41]
[1758676554686,4.1826,215.09,214.99,7.41]
[1758676554895,7.57,215.08,214.99,7.41]
[1758676555889,4.183,215.07,214.99,7.41]
[1758676557492,7.57,215.08,214.99,7.41]
[1758676557792,7.57,215.08,214.99,11.5945]
[1758676558496,7.57,215.08,214.99,7.41]
[1758676558796,4.183,215.07,214.99,7.41]
[1758676560294,7.57,215.04,214.95,11.5952]
[1758676560791,7.57,215.1,215.01,7.41]
[1758676560995,11.7526,215.1,215.01,7.41]
[1758676561389,11.7526,215.1,215.01,11.594]
[1758676562589,11.7526,215.1,215.03,4.1837]
[1758676562590,7.57,215.1,215.03,4.1837]
[1758676564797,7.57,215.1,215.01,11.5941]
[1758676565899,11.7525,215.1,215.01,11.5941]
[1758676567897,7.57,215.07,215.01,7.41]
[1758676568094,7.57,215.07,214.98,4.1846]
[1758676568993,7.57,215.07,215.01,7.41]
[1758676569199,7.57,215.11,215.01,7.41]
[1758676570098,7.57,215.07,215.01,7.41]
[1758676570305,7.57,215.07,214.95,7.41]
[1758676571402,7.57,215.04,214.91,7.41]
[1758676571603,9.63202394,215.02,214.91,7.41]
[1758676571999,65.0874,215.01,214.89,23.96]
[1758676572408,4.1847,214.98,214.89,23.96]
[1758676572912,11.7551,214.96,214.89,23.96]
[1758676573205,7.57,214.96,214.89,23.96]
[1758676573406,4.1856,214.94,214.87,7.41]
[1758676573607,4.1856,214.94,214.81,2.06202394]
[1758676573608,7.57,214.96,214.83,7.59]
[1758676574604,11.6561,214.91,214.83,7.59]
[1758676575512,7.47,214.91,214.83,7.59]
[1758676575707,2.06202394,214.96,214.83,7.59]
[1758676575708,7.47,214.96,214.83,7.59]
[1758676576011,7.47,214.96,214.87,7.59]
[1758676577103,7.47,214.96,214.88,4.1865]
[1758676577409,4.1843,215.0,214.88,4.1865]
[1758676577410,11.6543,215.0,214.89,7.59]
[1758676577611,7.47,215.0,214.89,7.59]
[1758676578913,7.47,215.0,214.91,4.1859]
[1758676580408,7.47,215.0,214.92,7.59]
[1758676581908,7.47,215.04,214.93,4.1857]
[1758676582216,7.47,215.04,214.93,7.59]
[1758676582604,7.47,215.04,214.96,7.59]
[1758676583703,7.47,215.04,214.97,4.1849]
[1758676584515,7.47,215.04,214.96,7.59]
[1758676585814,7.47,215.04,214.92,3.85097033]
[1758676586115,7.76,215.02,214.91,3.85097033]
[1758676586909,2.06202394,215.08,214.93,11.01097033]
[1758676587110,7.76,215.07,214.95,7.16]
[1758676587425,2.06202394,215.08,214.95,11.01097033]
[1758676587605,7.76,215.05,214.95,7.16]
[1758676588012,4.1836,215.04,214.95,7.16]
[1758676589012,4.1839,215.03,214.95,7.16]
[1758676589811,7.76,215.05,214.95,7.16]
[1758676590011,7.76,215.05,214.97,3.85097033]
[1758676590206,123.66,215.09,214.98,7.16]
[1758676590613,4.1829,215.08,214.98,11.3447]
[1758676590814,7.76,215.09,214.98,7.16]
[1758676591016,7.76,215.09,214.98,11.01097033]
[1758676591415,7.76,215.09,215.0,7.16]
[1758676592819,7.76,215.09,215.01,4.184]
[1758676594921,11.9427,215.09,215.01,4.184]
[1758676595321,11.9427,215.09,215.0,7.16]
[1758676595522,11.943,215.07,214.97,3.85097033]
[1758676595724,11.943,215.07,214.96,7.16]
[1758676595725,7.76,215.07,214.96,11.01097033]
[1758676596113,7.76,215.07,214.96,7.16]
[1758676596424,74.89752394,215.05,214.93,3.85097033]
[1758676596623,9.82202394,215.05,214.92,11.01097033]
[1758676597312,7.76,215.05,214.93,7.16]
[1758676597516,7.76,215.05,214.94,3.85097033]
[1758676598225,7.76,215.05,214.95,4.1851]
[1758676598522,7.76,215.05,214.94,3.85097033]
[1758676598721,4.1837,215.04,214.95,4.1853]
[1758676598918,7.76,215.05,214.95,7.16]
[1758676599116,7.76,215.05,214.96,3.85097033]
[1758676599517,7.76,215.05,214.95,11.01097033]
[1758676601129,7.76,215.11,214.98,7.16]
[1758676601421,7.76,215.11,215.0,65.0887]
[1758676601624,7.76,215.11,215.01,7.16]
[1758676602220,7.76,215.11,215.05,4.1832]
[1758676603426,7.76,215.11,215.03,4.1837]
[1758676603726,7.76,215.11,215.01,7.16]
[1758676604926,7.76,215.11,215.03,4.1836]
[1758676606725,7.76,215.11,215.05,4.1833]
[1758676607426,7.76,215.11,215.03,4.1837]
[1758676608626,7.76,215.11,215.02,1.31952344]
[1758676609430,7.76,215.11,215.03,7.16]
[1758676609727,0.80950941,215.12,215.05,1.31952344]
[1758676610527,0.80950941,215.12,215.06,4.183]
[1758676614632,0.80950941,215.12,215.03,7.16]
[1758676614934,0.80950941,215.12,215.05,7.49]
[1758676615822,0.80950941,215.12,215.08,4.1826]
[1758676616026,8.58950941,215.12,215.05,7.49]
[1758676616427,8.58950941,215.12,215.06,4.183]
[1758676617028,8.58950941,215.12,215.04,4.1835]
[1758676617228,8.58950941,215.12,215.0,8.80952344]
[1758676617437,8.58950941,215.12,215.04,7.49]
[1758676617626,8.58950941,215.12,215.06,1.31952344]
[1758676617627,0.80950941,215.12,215.06,1.31952344]
[1758676617826,7.78,215.16,215.07,7.49]
[1758676618934,7.78,215.16,215.08,4.1826]
[1758676619830,7.78,215.16,215.09,4.1824]
[1758676620937,7.78,215.14,215.05,4.1833]
[1758676621134,7.78,215.11,215.0,1.31952344]
[1758676621536,7.78,215.11,214.99,8.80952344]
[1758676622336,11.9623,215.11,215.02,4.1838]
[1758676622540,9.09952344,215.11,214.99,12.66049377]
[1758676622734,9.09952344,215.11,215.03,7.49]
[1758676622929,7.78,215.11,215.03,7.49]
[1758676623734,124.23952344,215.16,215.06,7.49]
[1758676623938,9.09952344,215.16,215.06,7.49]
[1758676624631,13.28082344,215.16,215.06,7.49]
[1758676625431,7.78,215.12,215.04,4.1834]
[1758676625938,4.1823,215.11,215.03,1.31952344]
[1758676626237,7.78,215.09,215.0,1.31952344]
[1758676626438,7.78,215.09,214.98,12.66049377]
[1758676626632,131.6973,215.11,214.98,12.66049377]
[1758676626838,1.31952344,215.04,214.95,5.17049377]
[1758676627041,7.78,215.03,214.95,1.31952344]
[1758676627233,7.78,215.01,214.92,16.84639377]
[1758676627533,9.09952344,215.01,214.92,7.49]
[1758676627834,7.78,214.98,214.9,1.31952344]
[1758676628136,7.78,214.98,214.88,7.49]
[1758676628137,9.09952344,214.98,214.88,7.49]
[1758676628332,7.78,214.98,214.9,1.31952344]
[1758676628532,7.78,215.08,214.95,1.31952344]
[1758676628729,7.78,215.08,214.96,8.80952344]
[1758676628730,4.1833,215.06,214.96,8.80952344]
[1758676628939,1.31952344,215.04,214.96,7.49]
[1758676629139,7.78,215.05,214.96,7.49]
[1758676629335,1.31952344,215.1,214.99,7.49]
[1758676629635,7.78,215.11,215.01,1.31952344]
[1758676629834,7.78,215.11,215.05,4.1833]
[1758676630031,1.31952344,215.12,215.02,7.49]
[1758676630338,9.09952344,215.15,215.05,7.49]
[1758676630639,0.80931174,215.17,215.08,7.49]
[1758676631237,0.80931174,215.17,215.11,4.182]
[1758676631440,0.80931174,215.17,215.08,7.49]
[1758676631943,7.78,215.16,215.09,4.1824]
[1758676632138,7.78,215.16,215.06,1.31952344]
[1758676632336,1.31952344,215.15,215.03,8.80952344]
[1758676632634,7.78,215.16,215.03,7.49]
[1758676632837,7.78,215.16,215.03,11.34097033]
[1758676633037,7.78,215.16,215.03,7.49]
[1758676633240,7.78,215.16,215.08,4.1828]
[1758676633842,7.78,215.16,215.1,4.1823]
[1758676634841,0.80931174,215.17,215.12,11.822]
[1758676635042,7.89931174,215.17,215.07,7.64]
[1758676635437,0.80931174,215.17,215.07,76.55777033]
[1758676636042,0.80931174,215.17,215.11,4.182]
[1758676636736,0.80931174,215.17,215.1,7.64]
[1758676638746,0.80931174,215.17,215.11,4.1822]
[1758676639837,0.80931174,215.17,215.1,7.64]
[1758676639838,362.85,215.23,215.14,7.64]
[1758676640043,0.80906713,215.21,215.14,7.64]
[1758676640244,0.80906713,215.21,215.1,11.8222]
[1758676640543,7.09,215.2,215.1,11.8222]
[1758676640938,7.09,215.2,215.1,7.64]
[1758676642339,7.09,215.2,215.06,11.49097033]
[1758676642539,7.09,215.2,215.06,7.64]
[1758676643232,11.2712,215.16,215.06,11.8231]
[1758676643840,11.2712,215.16,215.06,7.64]
[1758676644145,4.1816,215.14,215.06,7.64]
[1758676644742,11.2712,215.16,215.06,7.64]
[1758676645048,7.09,215.16,215.01,10.94097033]
[1758676645241,7.1,215.15,215.01,7.09]
[1758676645441,7.1,215.13,215.01,7.09]
[1758676645746,75.32280639,215.13,215.01,7.09]
[1758676645932,4.1828,215.09,215.01,7.09]
[1758676646134,7.1,215.1,215.01,7.09]
[1758676647244,7.1,215.1,215.02,4.1839]
[1758676647847,11.2824,215.1,215.01,7.09]
[1758676648641,7.1,215.1,215.01,7.09]
[1758676651348,65.0422,215.16,215.01,7.09]
[1758676651349,7.1,215.15,215.01,7.09]
[1758676651836,7.1,215.15,215.03,4.1836]
[1758676652152,7.1,215.15,215.04,7.09]
[1758676652547,7.1,215.15,215.07,7.09]
[1758676655350,11.2816,215.15,215.07,7.09]
[1758676655747,7.1,215.15,215.01,7.09]
[1758676656240,7.1,215.12,215.01,7.09]
[1758676656445,126.33110639,215.17,215.01,7.09]
[1758676656642,4.1815,215.15,215.01,7.09]
[1758676656842,7.1,215.17,215.02,7.09]
[1758676657047,7.1,215.17,215.03,7.09]
[1758676657450,11.281,215.17,215.06,7.09]
[1758676658151,7.1,215.17,215.06,7.09]
[1758676658552,1.31920653,215.14,215.06,7.09]
[1758676660548,5.50100653,215.14,215.06,7.09]
[1758676660755,7.1,215.13,215.01,3.85097033]
[1758676661053,65.0404,215.17,215.02,7.09]
[1758676661054,7.1,215.1,215.02,7.09]
[1758676661347,1.31920653,215.08,215.02,7.09]
[1758676663352,7.1,215.1,215.02,7.09]
[1758676664856,4.1826,215.09,215.02,7.09]
[1758676666557,4.1829,215.08,215.02,7.09]
[1758676667058,4.1831,215.07,214.99,7.09]
[1758676668258,4.1826,215.09,214.99,11.2744]
[1758676669050,4.1829,215.08,214.99,11.2744]
[1758676669249,7.1,215.1,214.99,7.09]
[1758676670759,4.1831,215.07,214.99,7.09]
[1758676670959,7.1,215.1,214.99,7.09]
[1758676671759,4.1833,215.06,214.99,7.09]
[1758676672260,7.1,215.07,214.99,7.09]
[1758676672761,7.1,215.03,214.95,7.09]
[1758676672964,7.1,215.03,214.95,10.94097033]
[1758676673360,7.1,215.03,214.95,7.09]
[1758676673864,2.06230729,215.08,214.95,10.94097033]
[1758676673865,7.38,215.08,214.95,10.94097033]
[1758676674163,4.1833,215.06,214.97,11.7748]
[1758676674859,7.38,215.08,214.96,3.85097033]
[1758676675065,7.38,215.08,214.99,7.59]
[1758676675461,4.1831,215.07,214.99,7.59]
[1758676675657,7.38,215.08,214.99,7.59]
[1758676676064,11.5629,215.08,214.99,7.59]
[1758676676264,7.38,215.08,214.99,7.59]
[1758676676766,11.5635,215.05,214.97,3.85097033]
[1758676677163,4.1829,215.08,214.98,7.59]
[1758676678062,7.38,215.09,214.98,7.59]
[1758676680059,72.4438,215.09,214.98,7.59]
[1758676681660,65.069,215.07,214.98,7.59]
[1758676681967,183.26610729,215.09,214.9,7.88831793]
[1758676681968,7.38,215.06,214.94,11.44097033]
[1758676682369,65.0724,215.06,214.94,11.44097033]
[1758676682562,7.38,215.05,214.94,7.59]
[1758676682764,7.38,215.05,214.95,7.59]
[1758676683069,9.44230729,215.09,214.96,7.59]
[1758676683370,9.44230729,215.09,214.95,3.85097033]
[1758676683371,7.38,215.09,214.98,7.59]
[1758676683662,11.5626,215.09,215.01,7.59]
[1758676683969,7.38,215.09,215.01,7.59]
[1758676685865,65.0661,215.08,214.96,11.44097033]
[1758676686071,2.06230729,215.09,214.96,7.59]
[1758676686371,8.18906713,215.21,215.07,7.59]
[1758676686672,8.18906713,215.21,215.09,7.59]
[1758676687170,7.38,215.17,215.06,3.85097033]
[1758676687369,7.38,215.17,215.05,11.44097033]
[1758676687765,4.1818,215.14,215.05,11.44097033]
[1758676687965,72.4191,215.17,215.05,11.44097033]
[1758676688167,4.1821,215.12,215.05,7.59]
[1758676688359,11.5621,215.12,215.05,7.59]
[1758676688763,7.38,215.12,215.05,7.59]
[1758676689168,9.44230729,215.16,215.05,7.59]
[1758676690173,7.38,215.16,215.05,7.59]
[1758676690367,7.38,215.16,215.06,3.85097033]
[1758676690568,7.38,215.16,215.08,4.1827]
[1758676690773,7.38,215.16,215.08,7.59]
[1758676691865,11.5614,215.16,215.08,7.59]
[1758676692471,7.38,215.16,215.05,3.85097033]
[1758676692672,7.38,215.16,215.04,3.85097033]
[1758676692974,7.38,215.16,215.05,7.39]
[1758676693579,117.42,215.17,215.07,7.39]
[1758676693875,9.43230729,215.2,215.08,7.39]
[1758676694075,4.1808,215.19,215.11,7.39]
[1758676694277,7.37,215.2,215.11,7.39]
[1758676694966,358.99,215.24,215.11,3.85097033]
[1758676695166,358.99,215.24,215.12,7.39]
[1758676695367,358.99,215.24,215.14,4.1816]
[1758676695678,358.99,215.24,215.12,7.39]
[1758676695878,4.1791,215.27,215.14,7.39]
[1758676696271,0.80892608,215.25,215.14,7.39]
[1758676696771,0.80892608,215.25,215.17,4.181]
[1758676697179,4.98842608,215.25,215.17,4.181]
[1758676697367,4.98842608,215.25,215.15,4.1814]
[1758676697771,0.80892608,215.25,215.15,4.1814]
[1758676700879,4.98852608,215.25,215.15,4.1814]
[1758676702175,0.80892608,215.25,215.15,4.1814]
[1758676702382,0.80892608,215.25,215.16,4.181]
[1758676702779,0.80892608,215.25,215.16,7.39]
[1758676703474,0.80892608,215.25,215.16,9.45230729]
[1758676703676,0.80892608,215.25,215.17,7.42]
[1758676704782,0.80892608,215.25,215.18,4.1808]
[1758676704981,0.80892608,215.25,215.19,7.42]
[1758676705177,7.37,215.28,215.19,7.42]
[1758676705380,4.98715688,215.31,215.19,7.42]
[1758676706780,4.98715688,215.31,215.21,4.1802]
[1758676707272,4.98715688,215.31,215.23,4.1798]
[1758676707876,0.80875688,215.31,215.24,4.1795]
[1758676708689,363.5372,215.37,215.28,7.42]
[1758676709088,0.80849383,215.35,215.29,4.1787]
[1758676709987,0.80849383,215.35,215.28,7.42]
[1758676712782,0.80849383,215.35,215.28,11.5987]
[1758676713791,64.9657,215.42,215.23,67.08240729]
[1758676713792,7.8,215.43,215.33,2.06230729]
[1758676713995,7.8,215.43,215.34,7.42]
[1758676714196,8.60824034,215.43,215.34,7.42]
[1758676714891,8.60824034,215.43,215.34,11.5977]
[1758676715090,0.80824034,215.43,215.34,7.42]
[1758676715290,7.8,215.47,215.37,7.42]
[1758676715491,8.6081371,215.47,215.37,7.42]
[1758676717292,12.7833371,215.47,215.37,7.42]
[1758676718493,8.6081371,215.47,215.37,7.42]
[1758676719191,7.8,215.46,215.35,2.06230729]
[1758676719396,7.8,215.46,215.36,7.42]
[1758676719595,7.8,215.46,215.36,11.5972]
[1758676719789,7.8,215.46,215.36,7.42]
[1758676720695,7.8,215.46,215.32,2.06230729]
[1758676720896,72.7536,215.46,215.32,2.06230729]
[1758676721296,72.7536,215.46,215.31,11.5982]
[1758676721491,0.8081371,215.47,215.32,4.1779]
[1758676721792,7.8,215.46,215.32,4.1779]
[1758676721993,4.1765,215.41,215.31,7.42]
[1758676722294,7.8,215.4,215.31,7.42]
[1758676722891,2.06230729,215.45,215.29,2.06230729]
[1758676722892,7.8,215.46,215.29,67.06410729]
[1758676723093,9.86230729,215.46,215.3,7.42]
[1758676723795,74.81450729,215.46,215.31,4.1783]
[1758676724001,7.8,215.41,215.3,7.42]
[1758676725002,7.8,215.41,215.34,4.1777]
[1758676725191,7.8,215.41,215.3,7.42]
[1758676725596,4.1768,215.39,215.3,7.42]
[1758676725801,7.8,215.4,215.3,7.42]
[1758676727101,9.86230729,215.4,215.3,7.42]
[1758676728097,7.8,215.4,215.3,7.42]
[1758676728699,9.11602752,215.4,215.3,8.73602752]
[1758676728902,9.11602752,215.4,215.32,4.178]
[1758676729101,7.8,215.37,215.3,7.42]
[1758676729599,7.8,215.37,215.21,12.21137033]
[1758676729600,1.31602752,215.36,215.26,8.73602752]
[1758676730296,5.49352752,215.36,215.26,8.73602752]
[1758676730492,5.49352752,215.36,215.26,7.42]
[1758676731498,4.1775,215.36,215.26,7.42]
[1758676731701,1.31602752,215.35,215.26,7.42]
[1758676732698,5.49372752,215.35,215.26,7.42]
[1758676733408,1.31602752,215.35,215.27,1.31602752]
[1758676733800,9.11602752,215.37,215.27,1.31602752]
[1758676734307,13.29332752,215.37,215.27,1.31602752]
[1758676735008,13.29332752,215.37,215.28,7.82]
[1758676737806,9.11602752,215.37,215.28,9.13602752]
[1758676738010,1.31602752,215.39,215.28,9.13602752]
[1758676738415,7.09,215.38,215.28,9.13602752]
[1758676739013,7.09,215.35,215.28,7.82]
[1758676739519,8.40602752,215.35,215.28,7.82]
[1758676740016,4.1778,215.34,215.28,7.82]
[1758676742415,8.40602752,215.32,215.23,7.82]
[1758676743312,8.40602752,215.32,215.24,1.31602752]
[1758676744320,7.09,215.32,215.24,1.31602752]
[1758676744910,11.2682,215.32,215.24,1.31602752]
[1758676745111,8.40602752,215.32,215.24,1.31602752]
[1758676745316,4.1795,215.25,215.19,7.82]
[1758676745522,1.31602752,215.24,215.15,356.54699785]
[1758676745820,7.09,215.25,215.16,7.82]
[1758676747515,1.31602752,215.24,215.16,7.82]
[1758676747825,7.09,215.31,215.17,1.31602752]
[1758676748011,1.31602752,215.28,215.19,1.31602752]
[1758676748914,1.31602752,215.34,215.24,7.82]
[1758676749114,8.40602752,215.34,215.24,7.82]
[1758676749419,8.40602752,215.34,215.24,9.13602752]
[1758676751919,7.09,215.34,215.25,4.1794]
[1758676752121,1.31602752,215.37,215.28,7.82]
[1758676752823,1.31602752,215.37,215.28,11.9987]
[1758676753022,1.31602752,215.37,215.28,15.84967033]
[1758676753223,7.09,215.38,215.28,15.84967033]
[1758676753224,7.09,215.38,215.29,1.31602752]
[1758676753420,7.09,215.38,215.3,7.75]
[1758676753619,9.01602752,215.42,215.32,1.31602752]
[1758676753923,1.31602752,215.4,215.3,7.75]
[1758676754124,1.31602752,215.4,215.3,13.24432752]
[1758676754427,7.7,215.42,215.33,7.75]
[1758676754616,7.7,215.42,215.34,1.31602752]
[1758676755821,9.01602752,215.42,215.34,1.31602752]
[1758676756028,7.7,215.42,215.33,7.75]
[1758676756216,1.31602752,215.4,215.33,7.75]
[1758676756926,5.49252752,215.4,215.33,7.75]
[1758676757327,1.31602752,215.4,215.33,7.75]
[1758676758331,7.7,215.39,215.29,7.75]
[1758676758629,1.31602752,215.42,215.32,7.75]
[1758676758830,1.31602752,215.42,215.33,1.31602752]
[1758676759440,1.31602752,215.42,215.32,7.75]
[1758676759625,1.31602752,215.42,215.33,1.31602752]
[1758676760326,7.7,215.41,215.32,7.75]
[1758676760529,1.31602752,215.4,215.32,7.75]
[1758676761533,7.7,215.41,215.32,7.75]
[1758676763527,7.34,215.37,215.28,8.52602752]
[1758676763931,8.65602752,215.37,215.28,8.52602752]
[1758676764133,7.34,215.37,215.28,8.52602752]
[1758676764433,5.49292752,215.39,215.31,7.21]
[1758676764623,7.34,215.41,215.31,7.21]
[1758676764829,8.65602752,215.41,215.31,7.21]
[1758676765835,12.83242752,215.41,215.32,1.31602752]
[1758676766337,1.31602752,215.44,215.34,1.31602752]
[1758676766636,0.8081371,215.47,215.33,7.21]
[1758676766637,1.31602752,215.42,215.33,7.21]
[1758676766838,7.34,215.41,215.33,7.21]
[1758676767430,7.34,215.39,215.3,1.31602752]
[1758676768030,8.65602752,215.39,215.3,1.31602752]
[1758676768738,8.65602752,215.39,215.29,7.21]
[1758676768932,7.34,215.36,215.26,3.85097033]
[1758676769238,1.31602752,215.35,215.25,8.52602752]
[1758676770044,8.65602752,215.33,215.25,8.52602752]
[1758676770337,8.65602752,215.33,215.23,1.31602752]
[1758676771240,1.31602752,215.31,215.23,1.31602752]
[1758676771735,1.31602752,215.31,215.22,1.31602752]
[1758676771935,5.49442752,215.31,215.22,1.31602752]
[1758676772838,4.1784,215.31,215.22,1.31602752]
[1758676773036,5.49442752,215.31,215.22,1.31602752]
[1758676773537,4.1787,215.3,215.22,1.31602752]
[1758676773937,7.34,215.33,215.22,1.31602752]
[1758676774243,8.65602752,215.33,215.23,7.21]
[1758676774839,12.83412752,215.33,215.23,11.3898]
[1758676775140,8.65602752,215.33,215.23,11.3898]
[1758676775738,7.34,215.39,215.27,7.21]
[1758676775939,7.34,215.36,215.27,7.21]
[1758676776339,4.1779,215.34,215.27,7.21]
[1758676778641,11.5174,215.36,215.28,1.31602752]
[1758676778840,7.34,215.36,215.28,1.31602752]
[1758676779343,7.34,215.36,215.28,5.49482752]
[1758676779543,7.34,215.36,215.28,1.31602752]
[1758676781349,8.65602752,215.36,215.28,1.31602752]
[1758676781739,7.34,215.36,215.28,1.31602752]
[1758676781944,7.34,215.36,215.29,7.21]
[1758676782248,11.5174,215.36,215.29,7.21]
[1758676783446,4.1776,215.35,215.29,7.21]
[1758676783749,4.1776,215.35,215.26,8.03017033]
[1758676783750,8.65602752,215.36,215.26,1.31602752]
[1758676784843,4.178,215.33,215.26,1.31602752]
[1758676785248,4.178,215.33,215.25,7.21]
[1758676785443,4.178,215.33,215.27,1.31602752]
[1758676786445,4.178,215.33,215.24,3.85097033]
[1758676786446,1.31602752,215.34,215.24,11.06097033]
[1758676786650,1.31602752,215.32,215.23,1.31602752]
[1758676786942,11.519,215.28,215.21,1.31602752]
[1758676787450,7.34,215.28,215.21,1.31602752]
[1758676787643,7.34,215.32,215.25,1.31602752]
[1758676788049,7.34,215.31,215.23,7.21]
[1758676788548,4.1792,215.27,215.23,7.21]
[1758676788748,1.31602752,215.32,215.23,7.21]
[1758676789055,7.34,215.31,215.23,7.21]
[1758676789352,1.31602752,215.32,215.23,7.21]
[1758676789353,11.519,215.28,215.23,7.21]
[1758676790152,4.1786,215.3,215.22,8.52602752]
[1758676790648,4.1792,215.27,215.22,7.21]
[1758676790953,7.34,215.26,215.22,7.21]
[1758676791148,7.34,215.3,215.18,3.85097033]
[1758676791453,4.1796,215.25,215.19,3.5841002]
[1758676791655,7.34,215.28,215.2,3.5841002]
[1758676791843,7.34,215.28,215.21,3.5841002]
[1758676792046,7.34,215.28,215.17,7.21]
[1758676792248,7.34,215.28,215.18,3.58505991]
[1758676792450,7.34,215.28,215.19,3.58505991]
[1758676792747,7.34,215.28,215.2,3.58505991]
[1758676792950,7.34,215.28,215.21,3.58505991]
[1758676793152,7.34,215.28,215.17,7.21]
[1758676793351,7.34,215.28,215.18,3.58585645]
[1758676793557,4.1802,215.22,215.19,3.58585645]
[1758676793850,4.1802,215.22,215.2,3.58585645]
[1758676793851,7.12,215.21,215.2,3.58585645]
[1758676794452,7.12,215.29,215.2,3.58441948]
[1758676794652,7.12,215.29,215.21,3.58418392]
[1758676794857,7.12,215.29,215.19,7.25]
[1758676795057,7.12,215.29,215.2,3.58410499]
[1758676795246,7.12,215.29,215.21,3.58410499]
[1758676795450,4.1791,215.27,215.19,7.25]
[1758676795752,4.1791,215.27,215.2,3.58320794]
[1758676795952,4.1791,215.27,215.21,3.58320794]
[1758676796151,4.1791,215.27,215.19,7.25]
[1758676796456,4.1791,215.27,215.2,3.58304049]
[1758676796656,65.0066,215.28,215.18,7.25]
[1758676796857,65.0066,215.28,215.19,3.58275724]
[1758676796858,7.12,215.27,215.19,3.58275724]
[1758676797058,65.0093,215.27,215.15,351.38]
[1758676797251,11.3004,215.21,215.16,3.58333635]
[1758676797456,11.3004,215.21,215.17,3.58333635]
[1758676797660,11.3004,215.21,215.14,7.25]
[1758676797846,11.3004,215.21,215.15,3.58157037]
[1758676798048,4.1806,215.2,215.16,3.58157037]
[1758676798247,4.1806,215.2,215.17,3.58157037]
[1758676798449,4.1806,215.2,215.13,7.25]
[1758676798747,4.1808,215.19,215.14,10.83034445]
[1758676798953,7.12,215.18,215.15,3.58034445]
[1758676799152,7.12,215.18,215.1,13.15883916]
[1758676799352,7.12,215.18,215.11,3.58131493]
[1758676799552,7.12,215.18,215.12,3.58131493]
[1758676799747,4.1808,215.19,215.13,3.58131493]
[1758676799748,11.3008,215.19,215.13,3.58131493]
[1758676799950,7.12,215.18,215.14,3.58131493]
[1758676800159,11.3009,215.18,215.09,11.10097033]
[1758676800347,7.12,215.18,215.1,3.57979601]
[1758676800552,7.12,215.18,215.12,7.25]
[1758676800747,7.12,215.18,215.13,10.82979601]
[1758676801052,7.12,215.18,215.14,3.57979601]
[1758676801258,7.12,215.18,215.13,7.25]
[1758676801455,7.12,215.18,215.14,3.57954332]
[1758676801757,65.0212,215.23,215.08,2.05786883]
[1758676801758,7.12,215.2,215.08,2.05786883]
[1758676801958,7.12,215.2,215.1,7.25]